bitfinex/quotes_ETHUSD_20250114
["timestamp","ask_amount","ask_price","bid_price","bid_amount"]
[1736865099214,0.63679244,3222.7,3220.7,0.8051]
[1736865099386,0.63679244,3222.7,3220.6,0.44279262]
[1736865099387,3.10231,3223.4,3220.9,0.8051]
[1736865099593,0.61146512,3223.0,3220.9,0.8051]
[1736865099841,0.61146512,3223.0,3221.0,0.8051]
[1736865100019,0.243,3223.3,3220.9,4.11752893]
[1736865100020,0.243,3223.3,3221.1,0.83613589]
[1736865100201,0.243,3223.3,3221.1,0.8051]
[1736865100402,0.62615123,3223.1,3221.1,0.8051]
[1736865100937,3.55,3222.7,3221.2,0.8051]
[1736865101241,3.55,3222.5,3221.2,0.8051]
[1736865101389,3.55,3222.3,3221.2,0.8051]
[1736865101943,3.0,3222.0,3221.2,0.8051]
[1736865102149,3.0,3221.8,3220.6,0.37046041]
[1736865102436,6.65451,3221.2,3219.9,0.7725]
[1736865102597,3.65491,3220.7,3219.9,0.7725]
[1736865102790,3.55,3220.2,3219.9,0.7725]
[1736865102989,3.0,3220.7,3219.9,0.7725]
[1736865103251,0.69194569,3221.2,3219.9,0.7725]
[1736865103452,3.10487,3220.8,3219.9,0.7725]
[1736865103726,0.55,3220.6,3219.9,0.7725]
[1736865104228,0.55,3220.4,3219.9,0.7725]
[1736865104596,3.55,3220.2,3219.4,0.7725]
[1736865104833,3.55,3220.0,3219.4,0.7725]
[1736865105019,0.55,3219.8,3219.4,0.7725]
[1736865105528,0.55,3219.6,3218.3,0.7725]
[1736865105758,7.22344893,3219.7,3218.3,0.7725]
[1736865106041,3.0,3219.6,3218.3,0.7725]
[1736865106240,0.55,3219.5,3218.3,0.7725]
[1736865106462,0.252,3219.9,3218.3,0.7725]
[1736865107210,3.65583,3219.8,3218.3,0.7725]
[1736865107409,3.65597,3219.6,3218.3,0.7725]
[1736865107941,3.65597,3219.6,3217.2,0.40153137]
[1736865107942,0.15556239,3220.8,3218.5,0.7725]
[1736865108146,0.252,3220.7,3218.5,0.7725]
[1736865108442,0.62580707,3220.9,3218.7,0.7725]
[1736865108643,0.252,3220.8,3218.7,0.7725]
[1736865108814,0.78245365,3221.2,3218.9,3.10665]
[1736865109141,0.62126412,3221.1,3219.0,0.7725]
[1736865109321,0.252,3221.3,3219.2,0.7725]
[1736865109843,0.252,3221.3,3219.3,0.7725]
[1736865110458,4.11752893,3221.2,3219.3,0.7725]
[1736865110660,0.55,3221.0,3219.3,0.7725]
[1736865111104,0.55,3220.8,3219.3,0.7725]
[1736865111582,3.10415,3221.5,3219.3,0.7725]
[1736865111796,4.11752893,3222.0,3219.5,0.7725]
[1736865111950,0.252,3222.4,3220.1,0.7725]
[1736865112145,3.10214,3223.6,3220.9,4.11752893]
[1736865112146,0.252,3223.2,3220.9,4.11752893]
[1736865112371,0.252,3223.2,3221.0,0.7725]
[1736865112684,0.252,3223.2,3221.1,0.80353615]
[1736865112987,7.21960893,3223.7,3221.1,0.80353615]
[1736865113191,3.10208,3223.7,3221.4,0.7725]
[1736865113403,3.10208,3223.7,3221.3,4.11752893]
[1736865113404,0.252,3223.7,3221.6,0.7725]
[1736865114002,3.10178,3224.0,3221.8,0.7725]
[1736865114162,0.252,3224.1,3221.8,0.7725]
[1736865114368,3.0,3223.8,3221.8,0.7725]
[1736865114586,3.0,3224.0,3221.8,0.7725]
[1736865114587,3.10173,3224.0,3221.8,0.7725]
[1736865115010,3.10192,3223.8,3221.8,0.7725]
[1736865115290,0.58015429,3223.7,3221.8,0.7725]
[1736865115594,3.55,3223.5,3221.8,0.7725]
[1736865116090,3.55,3223.2,3221.8,0.7725]
[1736865116580,0.02981898,3223.1,3221.8,0.7725]
[1736865116968,3.55,3222.7,3221.8,0.7725]
[1736865117174,0.55,3222.5,3221.8,0.7725]
[1736865120365,0.55,3221.0,3220.0,0.7725]
[1736865120700,3.55,3220.6,3220.0,0.7725]
[1736865121105,3.0,3220.0,3219.6,0.36873857]
[1736865121306,0.252,3219.9,3219.6,0.36873857]
[1736865121606,0.55,3219.8,3219.6,0.36873857]
[1736865121912,3.0,3220.4,3219.1,0.7725]
[1736865122081,7.22194893,3221.3,3219.1,0.7725]
[1736865122287,0.55,3220.8,3219.1,0.7725]
[1736865122508,0.55,3220.8,3218.6,3.0]
[1736865122509,0.252,3220.9,3219.2,0.03105795]
[1736865122681,0.252,3220.9,3219.2,0.8265]
[1736865123015,0.55,3220.8,3219.2,0.8265]
[1736865123208,3.10469,3221.0,3219.4,0.8265]
[1736865123209,0.252,3221.0,3219.4,0.8265]
[1736865123903,0.55,3220.9,3219.4,0.8265]
[1736865124107,0.252,3221.0,3219.4,0.8265]
[1736865124418,3.10218,3223.6,3218.9,3.10658]
[1736865124419,0.252,3221.7,3219.6,0.8265]
[1736865124584,0.252,3221.7,3219.8,0.8265]
[1736865125000,0.55,3221.2,3219.8,0.8265]
[1736865126101,3.0,3221.3,3219.9,0.8265]
[1736865126102,0.252,3221.3,3219.9,0.8265]
[1736865126677,0.55,3221.0,3219.9,0.8265]
[1736865127379,3.55,3220.6,3219.9,0.8265]
[1736865127576,3.55,3220.4,3218.6,0.8265]
[1736865128215,3.0,3220.1,3218.6,0.8265]
[1736865128376,0.252,3220.0,3218.6,0.8265]
[1736865128579,0.55,3219.9,3218.6,0.8265]
[1736865129092,3.55,3219.2,3218.6,0.8265]
[1736865129291,3.10665,3218.9,3217.8,0.8265]
[1736865129592,0.252,3218.8,3217.8,0.8265]
[1736865130183,3.35881,3218.8,3217.8,0.8265]
[1736865130535,3.55,3218.5,3217.8,0.8265]
[1736865130753,3.55,3217.7,3216.1,0.8265]
[1736865131023,3.0,3217.0,3216.1,0.8265]
[1736865131191,3.0,3217.3,3216.1,0.8265]
[1736865131410,0.252,3217.6,3216.1,0.8265]
[1736865131592,3.0,3217.7,3216.1,0.8265]
[1736865131593,0.55,3217.5,3216.1,0.8265]
[1736865131796,0.802,3217.5,3216.1,0.8265]
[1736865132257,0.55,3217.3,3216.1,0.8265]
[1736865132462,3.55,3217.1,3216.1,0.8265]
[1736865132752,7.11752893,3217.4,3216.1,0.8265]
[1736865132896,3.0,3217.3,3216.1,0.8265]
[1736865133099,0.55,3217.2,3216.1,0.8265]
[1736865133302,0.55,3217.3,3216.1,0.8265]
[1736865133701,0.252,3217.5,3216.1,0.8265]
[1736865133897,0.55,3217.4,3216.1,0.8265]
[1736865134216,4.17342893,3218.6,3216.1,0.8265]
[1736865134548,0.255,3218.3,3216.6,0.8265]
[1736865134756,0.255,3218.3,3216.8,0.8265]
[1736865135122,0.0559,3219.3,3216.9,4.11752893]
[1736865135302,4.11752893,3219.8,3216.7,0.52548179]
[1736865135303,0.255,3219.2,3217.4,0.8265]
[1736865135919,3.61373268,3219.6,3217.4,0.8265]
[1736865136216,0.255,3219.6,3217.8,0.8265]
[1736865136433,3.361,3219.6,3217.9,0.49440289]
[1736865136726,0.55,3218.8,3217.8,0.8265]
[1736865136931,3.55,3218.6,3217.8,0.8265]
[1736865137124,0.55,3218.4,3217.8,0.8265]
[1736865137325,0.55,3218.4,3216.2,0.03107982]
[1736865137326,0.55,3218.2,3216.2,0.8265]
[1736865137530,3.10775,3217.8,3216.2,0.8265]
[1736865137714,3.0,3217.7,3216.2,0.8265]
[1736865137944,0.255,3218.3,3216.2,0.8265]
[1736865138148,4.11752893,3218.0,3216.2,0.8265]
[1736865139262,7.28063893,3218.4,3216.2,0.8265]
[1736865139562,0.255,3218.0,3216.4,0.8265]
[1736865139715,0.55,3218.2,3216.4,0.8265]
[1736865140021,3.55,3218.2,3216.4,0.8265]
[1736865140919,3.55,3217.8,3216.4,0.8265]
[1736865141123,7.66752893,3217.5,3216.4,0.8265]
[1736865141314,3.55,3217.2,3216.4,0.8265]
[1736865141559,0.55,3216.8,3214.8,0.8265]
[1736865142160,3.0,3216.9,3214.8,0.8265]
[1736865142365,7.66752893,3216.7,3214.8,0.8265]
[1736865142657,3.10906,3216.4,3214.8,0.8265]
[1736865142830,0.55,3216.3,3214.8,0.8265]
[1736865143162,6.10887,3216.6,3214.8,0.8265]
[1736865143322,3.0,3216.2,3214.8,0.8265]
[1736865143654,0.55,3216.1,3214.8,0.8265]
[1736865143860,0.55,3215.8,3214.8,0.8265]
[1736865144035,3.55,3215.5,3214.8,0.8265]
[1736865144438,7.66752893,3215.5,3214.8,0.8265]
[1736865144818,3.55,3215.3,3214.8,0.8265]
[1736865145084,3.11003,3215.4,3213.5,0.8265]
[1736865145357,0.255,3215.7,3213.7,0.8265]
[1736865145866,0.55,3215.6,3213.7,0.8265]
[1736865146155,3.255,3215.7,3213.7,0.8265]
[1736865146156,3.55,3215.4,3213.7,0.8265]
[1736865148232,0.255,3215.7,3213.8,0.85761092]
[1736865148574,3.55,3215.4,3213.8,0.8265]
[1736865148770,0.55,3214.9,3213.8,0.8265]
[1736865148924,3.55,3214.5,3213.8,0.8265]
[1736865149272,3.55,3213.8,3212.1,0.8265]
[1736865149576,4.66752893,3213.8,3212.1,0.8265]
[1736865149866,0.55,3213.6,3212.1,0.8265]
[1736865150464,0.256,3213.6,3212.1,0.8265]
[1736865150762,0.256,3214.7,3212.7,0.8265]
[1736865150936,0.256,3214.7,3212.8,0.49440289]
[1736865151137,0.63733051,3215.1,3213.1,0.8265]
[1736865151343,0.256,3215.7,3213.6,3.11177]
[1736865151668,0.256,3215.7,3213.9,0.7592]
[1736865152155,0.86597004,3216.1,3213.9,0.79030639]
[1736865152364,0.256,3216.1,3214.1,0.7592]
[1736865152872,0.55,3216.0,3214.1,0.7592]
[1736865153039,0.256,3216.1,3214.2,0.79030598]
[1736865153366,0.256,3216.0,3214.2,0.79030064]
[1736865153566,0.256,3216.0,3214.2,0.7592]
[1736865154272,0.55,3215.9,3214.2,0.7592]
[1736865154572,3.55,3215.6,3214.2,0.7592]
[1736865154777,3.55,3215.4,3214.2,0.7592]
[1736865154942,3.55,3215.2,3214.2,0.7592]
[1736865155282,0.256,3215.2,3214.2,0.7592]
[1736865155572,5.35052,3217.0,3214.4,3.0]
[1736865155745,0.62888104,3216.4,3214.9,0.7592]
[1736865156076,2.498,3217.0,3214.7,4.11752893]
[1736865156077,2.498,3217.0,3215.0,0.7592]
[1736865156459,3.10858,3216.9,3215.0,0.7592]
[1736865156664,5.498,3217.0,3215.0,0.7592]
[1736865156872,3.55,3216.9,3215.0,0.7592]
[1736865157196,5.498,3217.0,3215.1,0.55]
[1736865157197,0.256,3217.0,3215.1,0.55]
[1736865157473,0.256,3217.0,3215.4,0.7592]
[1736865157673,0.256,3217.0,3215.6,0.7592]
[1736865157852,0.55,3216.7,3215.6,0.7592]
[1736865158179,3.0,3216.1,3215.6,0.7592]
[1736865158350,3.0,3216.1,3213.2,8.83]
[1736865158351,3.0,3215.7,3213.3,0.7592]
[1736865158554,3.11037,3215.1,3213.3,0.7592]
[1736865158885,0.55,3214.9,3213.3,0.7592]
[1736865159251,0.256,3215.0,3213.3,0.7592]
[1736865159458,0.256,3215.0,3213.4,0.7592]
[1736865159666,4.11752893,3215.7,3213.4,0.79030908]
[1736865159866,0.256,3215.6,3213.4,3.14301908]
[1736865160182,0.256,3215.6,3213.6,0.7592]
[1736865160343,0.256,3215.6,3213.8,0.7592]
[1736865160997,3.0,3216.0,3213.9,0.03110441]
[1736865161160,0.256,3216.2,3214.4,0.7592]
[1736865161344,0.256,3216.2,3214.6,0.55]
[1736865161681,0.32398935,3217.3,3215.2,0.7592]
[1736865161842,3.10748,3218.1,3215.1,4.66752893]
[1736865161843,4.11752893,3218.3,3215.6,6.10983]
[1736865162039,0.256,3218.2,3216.0,0.7592]
[1736865162272,0.256,3218.2,3215.7,0.03108724]
[1736865162273,0.32393666,3218.5,3216.4,0.7592]
[1736865162443,0.256,3218.4,3216.4,0.7592]
[1736865162653,4.11752893,3218.3,3216.4,0.7592]
[1736865162853,3.10746,3218.1,3216.4,0.7592]
[1736865163087,3.10732,3218.2,3216.4,0.7592]
[1736865163280,0.256,3218.4,3216.4,0.7592]
[1736865163480,3.10742,3218.1,3216.4,0.7592]
[1736865163794,0.55,3217.7,3216.4,0.7592]
[1736865163943,0.55,3217.5,3216.4,0.7592]
[1736865164144,0.55,3217.3,3216.4,0.7592]
[1736865164340,3.0,3217.0,3216.4,0.7592]
[1736865164551,0.55,3216.9,3216.4,0.7592]
[1736865164753,0.55,3216.9,3214.9,0.7592]
[1736865164952,3.55,3216.6,3214.9,0.7592]
[1736865165196,6.65931,3216.2,3214.9,0.7592]
[1736865165388,3.55,3216.2,3214.9,0.7592]
[1736865166083,3.0,3216.6,3214.9,0.7592]
[1736865166272,0.262,3216.5,3214.9,0.7592]
[1736865166782,0.262,3216.5,3215.0,0.03109809]
[1736865166980,0.262,3216.5,3215.1,0.7592]
[1736865167880,0.262,3216.5,3215.2,1.34029646]
[1736865168184,0.262,3217.4,3215.4,0.55]
[1736865168401,0.262,3217.4,3215.5,0.7592]
[1736865168890,3.65823,3217.3,3215.5,0.7592]
[1736865169185,0.55,3216.5,3215.5,0.7592]
[1736865169397,0.262,3216.6,3215.5,0.7592]
[1736865169607,0.262,3217.2,3215.5,0.7592]
[1736865170212,7.5487513,3218.2,3215.6,0.55]
[1736865170486,0.262,3218.1,3216.0,0.7592]
[1736865170789,0.262,3218.1,3216.2,0.7592]
[1736865170996,3.10709,3218.5,3216.2,0.7592]
[1736865171200,4.11752893,3217.9,3216.2,0.7592]
[1736865171497,3.10723,3218.3,3216.2,0.7592]
[1736865171683,3.0,3218.2,3216.2,0.7592]
[1736865172049,3.0,3218.0,3216.2,0.7592]
[1736865172249,0.55,3217.7,3216.2,0.7592]
[1736865172487,3.55,3217.2,3216.2,0.7592]
[1736865172704,3.0,3217.0,3216.2,0.7592]
[1736865173050,3.55,3216.7,3214.4,8.83]
[1736865173249,3.55,3216.5,3214.6,0.7592]
[1736865173467,3.55,3216.3,3214.6,0.7592]
[1736865173880,0.0559,3217.0,3214.6,0.7592]
[1736865173881,4.11752893,3216.9,3214.6,0.7592]
[1736865174407,4.11752893,3216.9,3214.7,0.7592]
[1736865174569,4.11752893,3217.3,3214.9,0.7592]
[1736865174755,3.0,3216.7,3214.9,0.7592]
[1736865174954,3.55,3216.4,3214.9,0.7592]
[1736865175162,3.0,3216.2,3214.9,0.7592]
[1736865175454,4.11752893,3215.9,3214.9,0.7592]
[1736865175654,3.0,3215.8,3214.9,0.7592]
[1736865175864,3.0,3216.3,3214.9,0.7592]
[1736865176285,4.37952893,3216.9,3214.9,0.7592]
[1736865176485,3.55,3215.8,3214.9,0.7592]
[1736865176686,0.55,3215.6,3214.9,0.7592]
[1736865177190,0.55,3215.4,3214.9,0.7592]
[1736865177556,0.55,3215.4,3213.1,0.7592]
[1736865177752,0.55,3215.4,3213.1,0.79031072]
[1736865177951,0.262,3215.7,3213.6,0.55]
[1736865178173,0.262,3215.7,3213.3,12.94752893]
[1736865178174,4.11752893,3215.6,3213.8,0.7592]
[1736865178487,0.262,3215.7,3213.8,0.7592]
[1736865178488,4.11752893,3214.7,3213.8,0.7592]
[1736865178991,0.55,3214.6,3213.8,0.7592]
[1736865179172,0.262,3214.5,3213.8,0.7592]
[1736865179484,0.55,3214.4,3213.8,0.7592]
[1736865179690,3.55,3214.2,3212.0,0.7592]
[1736865179991,3.55,3214.0,3212.0,0.7592]
[1736865180165,0.55,3213.4,3212.1,0.7592]
[1736865180352,3.55,3213.2,3212.1,0.7592]
[1736865180775,0.55,3212.9,3212.1,0.7592]
[1736865181106,0.262,3213.6,3212.1,0.7592]
[1736865181821,0.55,3213.5,3212.1,0.7592]
[1736865181962,0.262,3213.6,3212.1,0.7592]
[1736865182364,0.55,3213.5,3212.1,0.7592]
[1736865182691,3.0,3213.8,3212.1,0.7592]
[1736865182874,0.262,3214.1,3212.3,0.7642]
[1736865183196,0.262,3214.1,3212.0,0.58112193]
[1736865183197,3.37229,3215.2,3212.9,4.11752893]
[1736865183401,3.37229,3215.2,3213.4,0.7642]
[1736865183402,0.262,3215.2,3213.4,0.7642]
[1736865183599,0.62431212,3215.6,3213.5,0.7642]
[1736865183799,4.11752893,3216.3,3213.4,4.14863716]
[1736865183800,0.262,3215.9,3213.7,3.11167]
[1736865184004,0.262,3215.9,3213.8,0.7642]
[1736865184689,2.242,3216.1,3213.9,0.55]
[1736865184869,2.504,3216.1,3214.0,0.7642]
[1736865185198,2.504,3216.1,3214.4,0.7642]
[1736865185199,0.262,3216.1,3214.4,0.7642]
[1736865185527,0.262,3216.1,3214.6,0.7642]
[1736865186085,3.65902,3216.5,3214.6,0.7642]
[1736865186438,3.55,3215.8,3214.6,0.7642]
[1736865186613,3.0,3215.8,3214.6,0.7642]
[1736865186916,3.55,3216.1,3214.6,0.7642]
[1736865187072,0.55,3216.1,3214.6,0.7642]
[1736865187267,4.11752893,3216.8,3214.7,0.03110296]
[1736865187470,0.276,3216.7,3214.8,0.7642]
[1736865187777,3.55,3216.3,3214.8,0.7642]
[1736865188509,0.276,3216.2,3214.8,0.7642]
[1736865188717,3.0,3215.9,3214.8,0.7642]
[1736865188871,3.0,3215.5,3214.8,0.7642]
[1736865189071,4.11752893,3215.2,3214.8,0.7642]
[1736865189267,3.55,3214.9,3213.1,0.7642]
[1736865189480,3.55,3214.6,3213.1,0.7642]
[1736865189681,3.55,3214.4,3213.1,0.7642]
[1736865189989,0.276,3214.8,3213.1,0.7642]
[1736865189990,6.66124,3214.2,3213.1,0.7642]
[1736865190720,3.55,3213.8,3213.1,0.7642]
[1736865191109,3.55,3213.4,3213.1,0.7642]
[1736865191310,3.0,3213.0,3212.0,0.7642]
[1736865191636,3.0,3212.0,3211.9,0.1686541]
[1736865191777,3.276,3212.0,3211.9,0.1686541]
[1736865192420,3.826,3212.0,3211.9,0.1686541]
[1736865192773,0.276,3212.0,3211.9,0.1686541]
[1736865193170,3.3319,3212.0,3210.2,0.7642]
[1736865193383,3.0,3211.3,3210.2,0.7642]
[1736865193606,0.55,3211.2,3210.2,0.7642]
[1736865193806,4.11752893,3211.3,3210.2,0.7642]
[1736865194008,4.11752893,3210.9,3210.2,0.7642]
[1736865194208,0.277,3210.8,3210.2,0.7642]
[1736865194393,0.277,3211.0,3210.2,0.7642]
[1736865194976,0.277,3211.4,3210.2,0.7642]
[1736865195176,0.277,3211.9,3210.2,0.7642]
[1736865195827,0.277,3211.9,3210.3,0.55]
[1736865196124,3.26788703,3213.7,3210.3,0.55]
[1736865196125,0.277,3212.9,3210.7,4.66752893]
[1736865196336,0.277,3213.0,3211.2,0.7743]
[1736865196674,3.11245,3212.9,3211.2,0.7743]
[1736865196881,0.55,3212.8,3211.2,0.7743]
[1736865197098,3.0,3212.8,3211.2,0.7743]
[1736865197504,0.277,3213.0,3211.2,0.7743]
[1736865197812,3.11308,3212.3,3211.2,0.7743]
[1736865197974,3.55,3212.4,3211.2,0.7743]
[1736865198178,8.00548136,3211.9,3211.2,0.7743]
[1736865198378,0.277,3211.8,3211.2,0.7743]
[1736865198583,3.0,3211.6,3209.1,0.7743]
[1736865198879,0.55,3211.7,3209.4,0.55]
[1736865199211,3.277,3211.8,3209.5,0.7743]
[1736865199212,0.55,3211.5,3209.5,0.7743]
[1736865199814,3.11361,3211.7,3209.5,0.7743]
[1736865200004,3.0,3211.6,3209.5,0.7743]
[1736865200243,3.0,3211.6,3209.4,0.55]
[1736865200548,0.55,3211.7,3209.7,0.7743]
[1736865200711,0.277,3212.1,3210.2,3.66507]
[1736865200908,0.277,3212.1,3210.5,0.55]
[1736865201105,0.277,3212.1,3210.4,0.7743]
[1736865201106,0.277,3212.1,3210.7,0.7743]
[1736865202018,0.55,3211.7,3210.7,0.7743]
[1736865202220,3.55,3211.5,3210.7,0.7743]
[1736865202452,3.55,3211.2,3208.8,0.7944]
[1736865202612,0.277,3211.4,3208.9,0.825554]
[1736865202806,0.277,3211.4,3208.8,3.11639]
[1736865202807,0.55,3211.3,3209.1,0.55]
[1736865203008,3.0,3211.5,3209.3,0.55]
[1736865203261,0.277,3211.4,3209.6,0.7944]
[1736865203568,0.277,3211.4,3209.9,0.55]
[1736865203861,3.11299,3212.4,3210.1,0.55]
[1736865204043,3.16859,3212.7,3210.4,0.55]
[1736865204344,0.277,3212.5,3210.3,0.58113974]
[1736865204544,0.277,3212.4,3210.7,0.7944]
[1736865205121,0.55,3212.3,3210.7,0.7944]
[1736865205335,3.0,3211.6,3210.7,0.7944]
[1736865205511,0.63613699,3211.9,3210.7,0.7944]
[1736865205716,0.55,3211.8,3210.7,0.7944]
[1736865206236,0.55,3211.7,3210.7,0.7944]
[1736865206950,3.55,3211.7,3210.7,0.7944]
[1736865207151,0.3329,3212.4,3210.7,0.7944]
[1736865207152,8.11801136,3212.9,3210.7,0.7944]
[1736865207453,0.277,3212.5,3210.7,0.7944]
[1736865207678,0.55,3212.8,3210.7,0.7944]
[1736865207852,0.55,3212.3,3210.7,0.7944]
[1736865208420,3.0,3212.2,3210.7,0.7944]
[1736865208814,3.0,3212.5,3210.7,0.7944]
[1736865209062,0.277,3212.4,3210.7,0.7944]
[1736865209233,3.11303,3212.3,3210.7,0.7944]
[1736865209429,3.55,3212.2,3210.7,0.7944]
[1736865209778,5.00548136,3213.5,3211.0,0.55]
[1736865209953,0.277,3213.0,3211.2,0.7944]
[1736865210124,0.277,3213.0,3211.4,0.7944]
[1736865210473,0.277,3212.9,3211.4,0.7944]
[1736865211527,0.277,3212.9,3211.5,0.55]
[1736865211726,0.277,3212.9,3211.4,0.55]
[1736865212035,0.277,3212.9,3211.7,0.7944]
[1736865212649,3.11155,3213.9,3211.9,0.7944]
[1736865212851,0.277,3213.8,3212.0,0.7944]
[1736865213049,0.277,3213.8,3212.1,0.03112532]
[1736865213253,0.277,3213.8,3212.2,0.7944]
[1736865213566,3.0,3213.6,3212.2,0.7944]
[1736865213761,8.00548136,3213.6,3212.2,0.7944]
[1736865213931,3.0,3213.5,3212.2,0.7944]
[1736865214329,3.0,3213.3,3212.2,0.7944]
[1736865214526,3.38916,3213.2,3212.2,0.7944]
[1736865214864,0.55,3212.8,3212.2,0.7944]
[1736865215030,3.0,3212.4,3209.9,0.82553722]
[1736865215226,3.55,3212.6,3210.2,0.55]
[1736865215445,0.55,3212.4,3210.3,0.7944]
[1736865215863,3.11284,3212.5,3210.4,0.03114056]
[1736865216073,3.1132,3212.2,3210.6,0.7944]
[1736865216225,0.55,3212.1,3210.6,0.7944]
[1736865216767,3.0,3212.1,3210.6,0.7944]
[1736865216955,0.284,3212.7,3210.2,0.55]
[1736865217154,0.284,3212.7,3210.6,0.55]
[1736865217341,3.11178,3213.6,3211.2,0.7944]
[1736865217542,0.91984355,3213.5,3211.4,0.7944]
[1736865217872,3.0,3213.3,3211.4,0.7944]
[1736865218068,5.92532491,3213.5,3211.5,0.03112979]
[1736865218069,0.284,3213.5,3211.5,0.03112979]
[1736865218363,0.284,3213.5,3211.6,0.7944]
[1736865218584,3.11196,3213.4,3211.6,0.7944]
[1736865218785,3.284,3213.5,3211.6,0.7944]
[1736865218786,3.0,3213.1,3211.6,0.7944]
[1736865219317,3.284,3213.5,3211.7,0.82553144]
[1736865219481,0.284,3213.5,3211.8,0.7944]
[1736865219663,3.39589,3213.5,3211.8,0.7944]
[1736865220069,0.284,3213.5,3211.8,0.7944]
[1736865220922,0.284,3214.1,3212.2,1.3444]
[1736865221114,3.0,3213.6,3211.6,0.7944]
[1736865221668,3.0,3213.6,3211.7,0.55]
[1736865221881,3.0,3213.6,3212.0,0.7944]
[1736865222907,0.0559,3214.9,3212.5,3.66284]
[1736865223107,0.284,3215.0,3213.0,0.55]
[1736865223301,0.284,3215.0,3213.1,0.7944]
[1736865223507,3.95424888,3215.2,3213.4,0.55]
[1736865223828,3.95424888,3215.2,3213.3,0.55]
[1736865224421,3.95424888,3215.2,3213.5,0.55]
[1736865224653,7.06452888,3215.2,3212.9,0.7944]
[1736865224952,3.95424888,3215.2,3213.4,0.55]
[1736865225306,3.95424888,3215.2,3213.5,0.7701]
[1736865225564,0.284,3215.4,3213.5,0.7701]
[1736865225565,3.66032,3215.1,3213.5,0.7701]
[1736865225724,7.06492888,3214.8,3213.5,0.7701]
[1736865226050,3.0,3214.7,3213.5,0.7701]
[1736865226488,3.95424888,3215.2,3213.5,0.7701]
[1736865226667,3.11032,3215.1,3213.5,0.7701]
[1736865226816,3.55,3215.0,3213.5,0.7701]
[1736865227010,3.61014497,3215.0,3213.5,0.7701]
[1736865227207,0.61014497,3215.0,3213.7,0.7701]
[1736865227518,3.0,3214.7,3213.7,0.7701]
[1736865228125,3.95424888,3215.3,3213.7,0.7701]
[1736865228308,3.95424888,3215.3,3213.2,0.7701]
[1736865228513,3.0,3214.7,3213.2,0.7701]
[1736865228909,0.55,3215.1,3213.2,0.7701]
[1736865229163,0.55,3215.1,3212.6,3.03111418]
[1736865229164,3.0,3215.1,3213.4,0.7701]
[1736865229463,3.39422,3215.2,3213.4,0.7701]
[1736865229464,3.0,3214.8,3213.4,0.7701]
[1736865230531,3.0,3214.6,3213.4,0.7701]
[1736865231066,6.95424888,3214.4,3213.4,0.7701]
[1736865231771,3.0,3214.2,3213.4,0.7701]
[1736865231985,3.0,3214.7,3213.4,0.7701]
[1736865232263,0.90671072,3214.9,3213.4,0.7701]
[1736865232974,0.284,3214.9,3213.4,0.7701]
[1736865233190,3.0,3215.1,3213.4,0.7701]
[1736865233469,4.23824888,3215.2,3213.4,0.7701]
[1736865233622,3.95424888,3215.2,3213.5,0.03111283]
[1736865233819,3.95424888,3215.6,3213.4,0.55]
[1736865234083,0.284,3216.2,3213.9,3.95424888]
[1736865234224,0.284,3216.2,3214.5,3.95424888]
[1736865234551,0.284,3216.2,3214.2,1.3201]
[1736865234552,0.284,3216.2,3214.7,0.7701]
[1736865234929,0.0559,3217.1,3214.8,3.14171262]
[1736865235245,3.95424888,3217.1,3215.3,0.7701]
[1736865235558,3.0,3216.9,3215.3,0.7701]
[1736865235728,3.10848,3217.0,3215.3,0.7701]
[1736865236061,3.95424888,3217.5,3215.5,0.7701]
[1736865236366,0.62027923,3217.4,3215.5,0.7701]
[1736865236566,3.0,3217.0,3215.5,0.7701]
[1736865236772,3.10848,3217.0,3215.5,0.7701]
[1736865236974,3.95424888,3216.7,3215.5,0.7701]
[1736865237269,3.0,3216.9,3215.5,0.7701]
[1736865237439,3.95424888,3217.1,3215.5,0.7701]
[1736865237636,3.0,3217.0,3215.5,0.7701]
[1736865237936,0.62027923,3217.4,3215.5,0.7701]
[1736865238301,3.95424888,3218.4,3216.0,0.55]
[1736865238460,0.284,3218.8,3216.5,0.55]
[1736865238788,3.10574,3219.9,3217.2,0.55]
[1736865238789,3.95424888,3219.3,3217.2,0.55]
[1736865238992,3.95424888,3219.3,3217.4,0.7701]
[1736865239163,7.06050888,3219.3,3217.4,0.7701]
[1736865240093,3.0,3219.2,3217.4,0.7701]
[1736865240322,7.06050888,3219.3,3217.4,0.7701]
[1736865240445,2.244,3219.7,3217.7,0.55]
[1736865240796,3.39001,3219.6,3217.9,0.7538]
[1736865240996,3.10626,3219.3,3217.9,0.7538]
[1736865241348,3.0,3219.3,3217.9,0.7538]
[1736865241600,0.284,3219.6,3217.9,0.7538]
[1736865241820,3.14234168,3219.7,3217.9,0.7538]
[1736865241964,5.39,3219.7,3218.2,3.95424888]
[1736865242163,0.6369383,3220.7,3219.2,3.95424888]